[Event "Titled Tuesday Blitz June 6 Late 2023"]
[White "Zhurbinsky, David"]
[Black "Sjugirov, Sanan"]
[WhiteFideId "2072904"]
[BlackFideId "4189302"]
[WhiteElo "2671"]
[BlackElo "2569"]
[Result "0-1"]
[Round "4"]
[TimeControl "180+2"]
[Date "2023.06.07"]
[WhiteClock "0:00:09"]
[BlackClock "0:00:10"]
[Board "14"]

1. e4 {[%clk 0:03:00]}  c5 {[%clk 0:03:00]} 2. Nf3 {[%clk 0:03:01]}  d6 {[%clk 0:03:00]} 3. c3 {[%clk 0:02:53]}  Nf6 {[%clk 0:03:00]} 4. Be2 {[%clk 0:02:49]}  Bd7 {[%clk 0:02:57]} 5. d3 {[%clk 0:02:39]}  g6 {[%clk 0:02:56]} 6. O-O {[%clk 0:02:39]}  Bg7 {[%clk 0:02:57]} 7. h3 {[%clk 0:02:36]}  O-O {[%clk 0:02:57]} 8. Re1 {[%clk 0:02:34]}  Nc6 {[%clk 0:02:57]} 9. Bg5 {[%clk 0:02:29]}  b5 {[%clk 0:02:47]} 10. Nbd2 {[%clk 0:02:01]}  b4 {[%clk 0:02:46]} 11. Rc1 {[%clk 0:01:57]}  bxc3 {[%clk 0:02:43]} 12. bxc3 {[%clk 0:01:58]}  h6 {[%clk 0:02:37]} 13. Be3 {[%clk 0:01:53]}  Rb8 {[%clk 0:01:36]} 14. Qc2 {[%clk 0:01:45]}  Qa5 {[%clk 0:01:10]} 15. Nc4 {[%clk 0:01:33]}  Qc7 {[%clk 0:01:10]} 16. Rb1 {[%clk 0:01:17]}  Be6 {[%clk 0:01:09]} 17. Nfd2 {[%clk 0:01:10]}  Nd7 {[%clk 0:01:02]} 18. a3 {[%clk 0:01:02]}  Nb6 {[%clk 0:01:00]} 19. Nxb6 {[%clk 0:00:50]}  axb6 {[%clk 0:01:00]} 20. d4 {[%clk 0:00:48]}  Bd7 {[%clk 0:00:52]} 21. d5 {[%clk 0:00:40]}  Na5 {[%clk 0:00:52]} 22. c4 {[%clk 0:00:38]}  e6 {[%clk 0:00:39]} 23. Bd3 {[%clk 0:00:28]}  Rfe8 {[%clk 0:00:35]} 24. Bf4 {[%clk 0:00:23]}  Ra8 {[%clk 0:00:27]} 25. Bg3 {[%clk 0:00:20]}  Nb7 {[%clk 0:00:26]} 26. Qb3 {[%clk 0:00:17]}  Ra6 {[%clk 0:00:26]} 27. f4 {[%clk 0:00:09]}  Rea8 {[%clk 0:00:25]} 28. e5 {[%clk 0:00:06]}  Rxa3 {[%clk 0:00:21]} 29. Qxb6 {[%clk 0:00:06]}  Qxb6 {[%clk 0:00:22]} 30. Rxb6 {[%clk 0:00:06]}  Rxd3 {[%clk 0:00:22]} 31. Rxb7 {[%clk 0:00:07]}  Bc8 {[%clk 0:00:22]} 32. Re7 {[%clk 0:00:04]}  Kf8 {[%clk 0:00:11]} 33. exd6 {[%clk 0:00:02]}  Rxd2 {[%clk 0:00:11]} 34. dxe6 {[%clk 0:00:01]}  Bxe6 {[%clk 0:00:10]} 35. Bh4 {[%clk 0:00:02]}  Rxd6 {[%clk 0:00:09]} 36. Rb7 {[%clk 0:00:03]}  Kg8 {[%clk 0:00:08]} 37. Kh2 {[%clk 0:00:03]}  Rd4 {[%clk 0:00:08]} 38. Rc7 {[%clk 0:00:02]}  Rxf4 {[%clk 0:00:08]} 39. Bg3 {[%clk 0:00:03]}  Rxc4 {[%clk 0:00:08]} 40. Rb1 {[%clk 0:00:02]}  Rc3 {[%clk 0:00:08]} 41. Rbb7 {[%clk 0:00:03]}  Rxg3 {[%clk 0:00:08]} 42. Kxg3 {[%clk 0:00:03]}  Be5+ {[%clk 0:00:09]} 43. Kf3 {[%clk 0:00:04]}  Bxc7 {[%clk 0:00:10]} 44. Rxc7 {[%clk 0:00:05]}  c4 {[%clk 0:00:10]} 45. Ke4 {[%clk 0:00:06]}  Kg7 {[%clk 0:00:10]} 46. Ke5 {[%clk 0:00:07]}  Ra5+ {[%clk 0:00:10]} 47. Ke4 {[%clk 0:00:08]}  Rg5 {[%clk 0:00:10]} 48. Rc5 {[%clk 0:00:09]}  Rxc5 {[%clk 0:00:10]} 0-1


[Site "https://www.chess.com"]

[Event "Titled Tuesday Blitz June 6 Late 2023"]
[White "Di Benedetto, Edoardo"]
[Black "Caruana, Fabiano"]
[WhiteFideId "875740"]
[BlackFideId "2020009"]
[WhiteElo "2296"]
[BlackElo "2832"]
[Result "0-1"]
[Round "4"]
[TimeControl "180+2"]
[Date "2023.06.07"]
[WhiteClock "0:00:14"]
[BlackClock "0:00:55"]
[Board "16"]

1. d4 {[%clk 0:03:00]}  f5 {[%clk 0:02:56]} 2. Nc3 {[%clk 0:02:55]}  Nf6 {[%clk 0:02:55]} 3. Bg5 {[%clk 0:02:55]}  d5 {[%clk 0:02:55]} 4. e3 {[%clk 0:02:52]}  Be6 {[%clk 0:02:51]} 5. Nf3 {[%clk 0:02:51]}  Nbd7 {[%clk 0:02:50]} 6. Be2 {[%clk 0:02:47]}  g6 {[%clk 0:02:49]} 7. O-O {[%clk 0:02:46]}  Bg7 {[%clk 0:02:49]} 8. h3 {[%clk 0:02:26]}  O-O {[%clk 0:02:49]} 9. Bf4 {[%clk 0:02:20]}  Kh8 {[%clk 0:02:45]} 10. Ne5 {[%clk 0:02:18]}  c6 {[%clk 0:02:42]} 11. Rc1 {[%clk 0:01:54]}  a5 {[%clk 0:02:36]} 12. Nb1 {[%clk 0:01:54]}  Ne4 {[%clk 0:02:26]} 13. Nxd7 {[%clk 0:01:52]}  Qxd7 {[%clk 0:02:27]} 14. Nd2 {[%clk 0:01:48]}  g5 {[%clk 0:02:10]} 15. Nxe4 {[%clk 0:01:40]}  fxe4 {[%clk 0:02:11]} 16. Bxg5 {[%clk 0:01:32]}  Rg8 {[%clk 0:02:11]} 17. Bg4 {[%clk 0:01:02]}  Raf8 {[%clk 0:02:08]} 18. Bf4 {[%clk 0:00:49]}  Bxg4 {[%clk 0:02:02]} 19. Qxg4 {[%clk 0:00:48]}  Qxg4 {[%clk 0:02:02]} 20. hxg4 {[%clk 0:00:46]}  Bxd4 {[%clk 0:02:02]} 21. Bh6 {[%clk 0:00:43]}  Bg7 {[%clk 0:01:57]} 22. Bxg7+ {[%clk 0:00:43]}  Rxg7 {[%clk 0:01:58]} 23. f3 {[%clk 0:00:43]}  exf3 {[%clk 0:01:52]} 24. gxf3 {[%clk 0:00:42]}  h5 {[%clk 0:01:51]} 25. Kf2 {[%clk 0:00:34]}  Rxg4 {[%clk 0:01:33]} 26. Rh1 {[%clk 0:00:34]}  Rg5 {[%clk 0:01:33]} 27. Rh4 {[%clk 0:00:32]}  Kg7 {[%clk 0:01:30]} 28. f4 {[%clk 0:00:32]}  e5 {[%clk 0:01:25]} 29. Rch1 {[%clk 0:00:28]}  Kg6 {[%clk 0:01:22]} 30. Ke2 {[%clk 0:00:24]}  Rgf5 {[%clk 0:01:10]} 31. Rg1+ {[%clk 0:00:22]}  Kh6 {[%clk 0:01:09]} 32. Kf3 {[%clk 0:00:23]}  d4 {[%clk 0:01:06]} 33. Rd1 {[%clk 0:00:16]}  dxe3 {[%clk 0:01:03]} 34. Rd6+ {[%clk 0:00:15]}  R8f6 {[%clk 0:01:02]} 35. Rxf6+ {[%clk 0:00:14]}  Rxf6 {[%clk 0:01:03]} 36. Kxe3 {[%clk 0:00:15]}  Rxf4 {[%clk 0:01:00]} 37. Rh2 {[%clk 0:00:13]}  h4 {[%clk 0:01:00]} 38. Rd2 {[%clk 0:00:13]}  h3 {[%clk 0:00:56]} 39. Rd6+ {[%clk 0:00:13]}  Kg5 {[%clk 0:00:56]} 40. Rd8 {[%clk 0:00:13]}  h2 {[%clk 0:00:54]} 41. Rg8+ {[%clk 0:00:13]}  Kh4 {[%clk 0:00:54]} 42. Rh8+ {[%clk 0:00:13]}  Kg3 {[%clk 0:00:54]} 43. Rg8+ {[%clk 0:00:14]}  Rg4 {[%clk 0:00:55]} 0-1


[Site "https://www.chess.com"]

[Event "Titled Tuesday Blitz June 6 Late 2023"]
[White "Indjic, Aleksandar"]
[Black "Skatchkov, Pavel"]
[WhiteFideId "911925"]
[BlackFideId "4121848"]
[WhiteElo "2614"]
[BlackElo "2476"]
[Result "1-0"]
[Round "4"]
[TimeControl "180+2"]
[Date "2023.06.07"]
[WhiteClock "0:01:10"]
[BlackClock "0:00:11"]
[Board "24"]

1. d4 {[%clk 0:03:00]}  Nf6 {[%clk 0:03:00]} 2. c4 {[%clk 0:03:00]}  e6 {[%clk 0:03:00]} 3. Nc3 {[%clk 0:03:01]}  d5 {[%clk 0:03:00]} 4. Nf3 {[%clk 0:02:59]}  c5 {[%clk 0:02:59]} 5. e3 {[%clk 0:02:57]}  dxc4 {[%clk 0:02:57]} 6. Bxc4 {[%clk 0:02:55]}  a6 {[%clk 0:02:57]} 7. a4 {[%clk 0:02:53]}  Nc6 {[%clk 0:02:57]} 8. O-O {[%clk 0:02:54]}  Be7 {[%clk 0:02:51]} 9. Qe2 {[%clk 0:02:53]}  O-O {[%clk 0:02:49]} 10. Rd1 {[%clk 0:02:53]}  cxd4 {[%clk 0:02:47]} 11. exd4 {[%clk 0:02:54]}  Qc7 {[%clk 0:02:45]} 12. Bg5 {[%clk 0:02:38]}  h6 {[%clk 0:02:42]} 13. Bh4 {[%clk 0:02:37]}  Rd8 {[%clk 0:02:39]} 14. Rac1 {[%clk 0:02:36]}  Qa5 {[%clk 0:02:13]} 15. Ba2 {[%clk 0:02:12]}  Nb4 {[%clk 0:02:01]} 16. Bb1 {[%clk 0:02:10]}  Bd7 {[%clk 0:01:55]} 17. b3 {[%clk 0:01:36]}  Bc6 {[%clk 0:01:51]} 18. Ne5 {[%clk 0:01:35]}  Rac8 {[%clk 0:01:49]} 19. Nc4 {[%clk 0:01:32]}  Qc7 {[%clk 0:01:25]} 20. Bg3 {[%clk 0:01:31]}  Qd7 {[%clk 0:01:23]} 21. Nb6 {[%clk 0:01:31]}  Qe8 {[%clk 0:01:22]} 22. Nxc8 {[%clk 0:01:31]}  Rxc8 {[%clk 0:01:23]} 23. Ne4 {[%clk 0:01:30]}  Nfd5 {[%clk 0:01:09]} 24. Nd6 {[%clk 0:01:28]}  Bxd6 {[%clk 0:01:05]} 25. Bxd6 {[%clk 0:01:29]}  Qd8 {[%clk 0:01:05]} 26. Bg3 {[%clk 0:01:28]}  Qf6 {[%clk 0:00:53]} 27. Qd2 {[%clk 0:01:27]}  Rd8 {[%clk 0:00:51]} 28. Be4 {[%clk 0:01:26]}  a5 {[%clk 0:00:45]} 29. f3 {[%clk 0:01:24]}  Ne7 {[%clk 0:00:20]} 30. Bc7 {[%clk 0:01:20]}  Rd7 {[%clk 0:00:18]} 31. Bxa5 {[%clk 0:01:20]}  Bxe4 {[%clk 0:00:12]} 32. fxe4 {[%clk 0:01:18]}  Nbc6 {[%clk 0:00:10]} 33. Bc3 {[%clk 0:01:18]}  Qh4 {[%clk 0:00:09]} 34. Qe3 {[%clk 0:01:16]}  Ng6 {[%clk 0:00:09]} 35. d5 {[%clk 0:01:14]}  exd5 {[%clk 0:00:09]} 36. exd5 {[%clk 0:01:12]}  Re7 {[%clk 0:00:09]} 37. Qg3 {[%clk 0:01:12]}  Qxg3 {[%clk 0:00:07]} 38. hxg3 {[%clk 0:01:13]}  Nce5 {[%clk 0:00:08]} 39. d6 {[%clk 0:01:12]}  Rd7 {[%clk 0:00:08]} 40. Bxe5 {[%clk 0:01:13]}  Nxe5 {[%clk 0:00:09]} 41. Rc8+ {[%clk 0:01:12]}  Kh7 {[%clk 0:00:09]} 42. Rc7 {[%clk 0:01:12]}  Rd8 {[%clk 0:00:10]} 43. Rxb7 {[%clk 0:01:11]}  Kg6 {[%clk 0:00:10]} 44. d7 {[%clk 0:01:11]}  Kf6 {[%clk 0:00:09]} 45. a5 {[%clk 0:01:11]}  Ke6 {[%clk 0:00:09]} 46. a6 {[%clk 0:01:12]}  Nxd7 {[%clk 0:00:10]} 47. Rdxd7 {[%clk 0:01:10]}  Rxd7 {[%clk 0:00:11]} 1-0


[Site "https://www.chess.com"]

[Event "Titled Tuesday Blitz June 6 Late 2023"]
[White "Gadimbayli, Abdulla"]
[Black "Kuzhilniy, Oleksandr"]
[WhiteFideId "13404938"]
[BlackFideId "34110500"]
[WhiteElo "2386"]
[BlackElo "2074"]
[Result "0-1"]
[Round "4"]
[TimeControl "180+2"]
[Date "2023.06.07"]
[WhiteClock "0:00:06"]
[BlackClock "0:00:38"]
[Board "25"]

1. Nf3 {[%clk 0:03:00]}  Nf6 {[%clk 0:02:56]} 2. b3 {[%clk 0:03:00]}  g6 {[%clk 0:02:56]} 3. Bb2 {[%clk 0:03:01]}  Bg7 {[%clk 0:02:57]} 4. e4 {[%clk 0:02:56]}  d6 {[%clk 0:02:56]} 5. d3 {[%clk 0:02:52]}  O-O {[%clk 0:02:53]} 6. Nbd2 {[%clk 0:02:53]}  e5 {[%clk 0:02:50]} 7. Be2 {[%clk 0:02:52]}  c6 {[%clk 0:02:44]} 8. O-O {[%clk 0:02:48]}  Nbd7 {[%clk 0:02:44]} 9. Nc4 {[%clk 0:02:47]}  Nc5 {[%clk 0:02:42]} 10. Re1 {[%clk 0:02:28]}  Be6 {[%clk 0:02:35]} 11. Ne3 {[%clk 0:02:21]}  Ng4 {[%clk 0:02:35]} 12. Nxg4 {[%clk 0:02:02]}  Bxg4 {[%clk 0:02:36]} 13. h3 {[%clk 0:02:03]}  Bxf3 {[%clk 0:02:35]} 14. Bxf3 {[%clk 0:02:04]}  Ne6 {[%clk 0:02:33]} 15. g3 {[%clk 0:02:04]}  f5 {[%clk 0:02:28]} 16. exf5 {[%clk 0:02:04]}  gxf5 {[%clk 0:02:28]} 17. Qd2 {[%clk 0:02:02]}  Qf6 {[%clk 0:02:23]} 18. Qb4 {[%clk 0:01:56]}  Rf7 {[%clk 0:02:07]} 19. Bh5 {[%clk 0:01:30]}  Rd7 {[%clk 0:02:04]} 20. Bf3 {[%clk 0:01:18]}  Kh8 {[%clk 0:01:55]} 21. Rad1 {[%clk 0:01:14]}  Rg8 {[%clk 0:01:52]} 22. Ba1 {[%clk 0:01:06]}  Qh6 {[%clk 0:01:35]} 23. Bg2 {[%clk 0:00:55]}  f4 {[%clk 0:01:34]} 24. Kh2 {[%clk 0:00:43]}  Bf6 {[%clk 0:01:29]} 25. Rg1 {[%clk 0:00:34]}  Rdg7 {[%clk 0:01:24]} 26. Bf1 {[%clk 0:00:29]}  Bh4 {[%clk 0:01:08]} 27. g4 {[%clk 0:00:18]}  Bxf2 {[%clk 0:01:05]} 28. Rg2 {[%clk 0:00:16]}  Bc5 {[%clk 0:01:00]} 29. Qd2 {[%clk 0:00:13]}  Ng5 {[%clk 0:00:52]} 30. Rf2 {[%clk 0:00:08]}  Qh4 {[%clk 0:00:41]} 31. d4 {[%clk 0:00:08]}  Ne4 {[%clk 0:00:38]} 32. Qe2 {[%clk 0:00:06]}  Qg3+ {[%clk 0:00:38]} 0-1


[Site "https://www.chess.com"]

[Event "Titled Tuesday Blitz June 6 Late 2023"]
[White "Safin, Robert"]
[Black "Sieciechowicz, Marcin"]
[WhiteFideId "34189120"]
[BlackFideId "1130170"]
[WhiteElo "2341"]
[BlackElo "2301"]
[Result "0-1"]
[Round "4"]
[TimeControl "180+2"]
[Date "2023.06.07"]
[WhiteClock "0:00:02"]
[BlackClock "0:00:08"]
[Board "27"]

1. e4 {[%clk 0:03:00]}  c5 {[%clk 0:02:59]} 2. c3 {[%clk 0:03:00]}  Nf6 {[%clk 0:02:57]} 3. e5 {[%clk 0:03:01]}  Nd5 {[%clk 0:02:57]} 4. Nf3 {[%clk 0:03:01]}  d6 {[%clk 0:02:06]} 5. exd6 {[%clk 0:03:00]}  e6 {[%clk 0:02:04]} 6. d4 {[%clk 0:02:57]}  cxd4 {[%clk 0:02:00]} 7. Nxd4 {[%clk 0:02:52]}  Bxd6 {[%clk 0:02:00]} 8. Bd3 {[%clk 0:02:52]}  O-O {[%clk 0:01:56]} 9. O-O {[%clk 0:02:52]}  Nc6 {[%clk 0:01:55]} 10. Nxc6 {[%clk 0:02:50]}  bxc6 {[%clk 0:01:55]} 11. Nd2 {[%clk 0:02:50]}  e5 {[%clk 0:01:55]} 12. Nc4 {[%clk 0:02:48]}  Bc7 {[%clk 0:01:41]} 13. Re1 {[%clk 0:02:29]}  f6 {[%clk 0:01:35]} 14. Qc2 {[%clk 0:02:28]}  h6 {[%clk 0:01:27]} 15. Be3 {[%clk 0:02:26]}  Re8 {[%clk 0:01:21]} 16. Rad1 {[%clk 0:02:26]}  Qe7 {[%clk 0:01:15]} 17. b4 {[%clk 0:02:24]}  Be6 {[%clk 0:01:12]} 18. Bc5 {[%clk 0:02:23]}  Qd7 {[%clk 0:01:04]} 19. Ne3 {[%clk 0:01:54]}  Bb6 {[%clk 0:00:38]} 20. c4 {[%clk 0:01:44]}  Nxe3 {[%clk 0:00:38]} 21. Bxe3 {[%clk 0:01:44]}  Qb7 {[%clk 0:00:31]} 22. c5 {[%clk 0:01:38]}  Bc7 {[%clk 0:00:31]} 23. a3 {[%clk 0:01:27]}  a5 {[%clk 0:00:31]} 24. Qd2 {[%clk 0:01:15]}  axb4 {[%clk 0:00:30]} 25. axb4 {[%clk 0:01:15]}  Ra2 {[%clk 0:00:28]} 26. Qc1 {[%clk 0:01:12]}  Raa8 {[%clk 0:00:20]} 27. Bxh6 {[%clk 0:01:01]}  Qxb4 {[%clk 0:00:16]} 28. Re3 {[%clk 0:00:36]}  Re7 {[%clk 0:00:11]} 29. Rf3 {[%clk 0:00:18]}  Rd8 {[%clk 0:00:11]} 30. h4 {[%clk 0:00:14]}  e4 {[%clk 0:00:08]} 31. Bxe4 {[%clk 0:00:03]}  Rxd1+ {[%clk 0:00:08]} 32. Qxd1 {[%clk 0:00:04]}  Qxe4 {[%clk 0:00:08]} 33. Re3 {[%clk 0:00:02]}  Qxh4 {[%clk 0:00:08]} 0-1


[Site "https://www.chess.com"]

[Event "Titled Tuesday Blitz June 6 Late 2023"]
[White "Becerra, Juan David"]
[Black "Nakamura, Hikaru"]
[WhiteFideId "4404998"]
[BlackFideId "2016192"]
[WhiteElo "2304"]
[BlackElo "2874"]
[Result "0-1"]
[Round "4"]
[TimeControl "180+2"]
[Date "2023.06.07"]
[WhiteClock "0:00:09"]
[BlackClock "0:01:25"]
[Board "29"]

1. e4 {[%clk 0:02:53]}  g6 {[%clk 0:02:53]} 2. d4 {[%clk 0:02:48]}  Bg7 {[%clk 0:02:53]} 3. Nc3 {[%clk 0:02:48]}  a6 {[%clk 0:02:54]} 4. Bf4 {[%clk 0:02:33]}  b5 {[%clk 0:02:53]} 5. Qd2 {[%clk 0:02:28]}  Bb7 {[%clk 0:02:52]} 6. a3 {[%clk 0:02:24]}  d6 {[%clk 0:02:53]} 7. h4 {[%clk 0:02:18]}  h6 {[%clk 0:02:47]} 8. f3 {[%clk 0:02:15]}  Nd7 {[%clk 0:02:47]} 9. O-O-O {[%clk 0:02:11]}  c5 {[%clk 0:02:47]} 10. Nge2 {[%clk 0:02:00]}  Rc8 {[%clk 0:02:41]} 11. dxc5 {[%clk 0:01:57]}  Nxc5 {[%clk 0:02:40]} 12. Be3 {[%clk 0:01:43]}  Qc7 {[%clk 0:02:32]} 13. Nd4 {[%clk 0:01:42]}  h5 {[%clk 0:02:29]} 14. Kb1 {[%clk 0:01:41]}  Nf6 {[%clk 0:02:29]} 15. Be2 {[%clk 0:01:36]}  Ncd7 {[%clk 0:02:17]} 16. Bg5 {[%clk 0:00:57]}  Nb6 {[%clk 0:02:15]} 17. Rhe1 {[%clk 0:00:57]}  Nfd7 {[%clk 0:02:15]} 18. f4 {[%clk 0:00:53]}  Nc5 {[%clk 0:02:09]} 19. Qe3 {[%clk 0:00:47]}  O-O {[%clk 0:02:06]} 20. f5 {[%clk 0:00:43]}  e5 {[%clk 0:01:49]} 21. Nf3 {[%clk 0:00:27]}  Nxe4 {[%clk 0:01:40]} 22. Nxe4 {[%clk 0:00:25]}  Qxc2+ {[%clk 0:01:40]} 23. Ka1 {[%clk 0:00:25]}  Na4 {[%clk 0:01:41]} 24. Rd2 {[%clk 0:00:20]}  Qxe4 {[%clk 0:01:41]} 25. Qxe4 {[%clk 0:00:18]}  Bxe4 {[%clk 0:01:42]} 26. fxg6 {[%clk 0:00:18]}  Bxg6 {[%clk 0:01:31]} 27. Be7 {[%clk 0:00:19]}  e4 {[%clk 0:01:28]} 28. Nd4 {[%clk 0:00:18]}  e3 {[%clk 0:01:27]} 29. Rdd1 {[%clk 0:00:14]}  Rfe8 {[%clk 0:01:27]} 30. Bg5 {[%clk 0:00:09]}  Re4 {[%clk 0:01:25]} 0-1


[Site "https://www.chess.com"]

[Event "Titled Tuesday Blitz June 6 Late 2023"]
[White "Andreikin, Dmitry"]
[Black "Cilek, Bora"]
[WhiteFideId "4158814"]
[BlackFideId "34502165"]
[WhiteElo "2736"]
[BlackElo "2108"]
[Result "1-0"]
[Round "4"]
[TimeControl "180+2"]
[Date "2023.06.07"]
[WhiteClock "0:00:43"]
[BlackClock "0:00:24"]
[Board "30"]

1. d4 {[%clk 0:03:00]}  Nf6 {[%clk 0:02:59]} 2. c4 {[%clk 0:03:00]}  e6 {[%clk 0:02:57]} 3. Nf3 {[%clk 0:02:59]}  d5 {[%clk 0:02:57]} 4. Nc3 {[%clk 0:02:59]}  Be7 {[%clk 0:02:56]} 5. Bf4 {[%clk 0:02:58]}  O-O {[%clk 0:02:56]} 6. e3 {[%clk 0:02:58]}  Nbd7 {[%clk 0:02:55]} 7. c5 {[%clk 0:02:57]}  c6 {[%clk 0:02:56]} 8. h3 {[%clk 0:02:54]}  b6 {[%clk 0:02:55]} 9. b4 {[%clk 0:02:54]}  a5 {[%clk 0:02:56]} 10. a3 {[%clk 0:02:54]}  Ba6 {[%clk 0:02:57]} 11. Bxa6 {[%clk 0:02:52]}  Rxa6 {[%clk 0:02:58]} 12. O-O {[%clk 0:02:51]}  Qa8 {[%clk 0:02:55]} 13. Nd2 {[%clk 0:02:48]}  Qb7 {[%clk 0:02:50]} 14. Rb1 {[%clk 0:02:43]}  Rfa8 {[%clk 0:02:38]} 15. Qc2 {[%clk 0:02:42]}  h6 {[%clk 0:02:32]} 16. b5 {[%clk 0:02:37]}  cxb5 {[%clk 0:02:30]} 17. Nxb5 {[%clk 0:02:32]}  Rc8 {[%clk 0:02:23]} 18. Rfc1 {[%clk 0:02:32]}  Qc6 {[%clk 0:02:07]} 19. Bd6 {[%clk 0:02:18]}  Bd8 {[%clk 0:02:00]} 20. Qd3 {[%clk 0:02:16]}  bxc5 {[%clk 0:01:51]} 21. dxc5 {[%clk 0:02:17]}  Ne8 {[%clk 0:01:43]} 22. Nf3 {[%clk 0:01:52]}  Qa8 {[%clk 0:01:42]} 23. Nfd4 {[%clk 0:01:43]}  e5 {[%clk 0:01:31]} 24. Nf5 {[%clk 0:01:36]}  e4 {[%clk 0:01:29]} 25. Qe2 {[%clk 0:01:28]}  Bf6 {[%clk 0:01:26]} 26. Nxh6+ {[%clk 0:01:24]}  Kh7 {[%clk 0:01:17]} 27. Nxf7 {[%clk 0:01:22]}  Rac6 {[%clk 0:00:59]} 28. Nd4 {[%clk 0:01:00]}  Bxd4 {[%clk 0:00:56]} 29. exd4 {[%clk 0:01:00]}  Ndf6 {[%clk 0:00:54]} 30. Be5 {[%clk 0:00:57]}  Kg6 {[%clk 0:00:52]} 31. Nh8+ {[%clk 0:00:56]}  Kh7 {[%clk 0:00:52]} 32. Nf7 {[%clk 0:00:55]}  Kg6 {[%clk 0:00:53]} 33. Nd6 {[%clk 0:00:55]}  Nxd6 {[%clk 0:00:53]} 34. Bxd6 {[%clk 0:00:55]}  a4 {[%clk 0:00:50]} 35. Be5 {[%clk 0:00:55]}  Qa5 {[%clk 0:00:49]} 36. Rb7 {[%clk 0:00:52]}  Qa6 {[%clk 0:00:41]} 37. Qxa6 {[%clk 0:00:45]}  Rxa6 {[%clk 0:00:42]} 38. Rc3 {[%clk 0:00:45]}  e3 {[%clk 0:00:24]} 39. Rxe3 {[%clk 0:00:44]}  Ne4 {[%clk 0:00:24]} 40. Rxg7+ {[%clk 0:00:43]}  Kf5 {[%clk 0:00:23]} 41. Rf3+ {[%clk 0:00:42]}  Ke6 {[%clk 0:00:24]} 42. Rg6+ {[%clk 0:00:43]} 1-0


[Site "https://www.chess.com"]

[Event "Titled Tuesday Blitz June 6 Late 2023"]
[White "Aldokhin, Ivan"]
[Black "Terry, Renato"]
[WhiteFideId "24115720"]
[BlackFideId "3803457"]
[WhiteElo "2322"]
[BlackElo "2575"]
[Result "0-1"]
[Round "4"]
[TimeControl "180+2"]
[Date "2023.06.07"]
[WhiteClock "0:00:03"]
[BlackClock "0:00:39"]
[Board "34"]

1. e4 {[%clk 0:02:50]}  e6 {[%clk 0:03:00]} 2. d4 {[%clk 0:02:48]}  d5 {[%clk 0:03:00]} 3. exd5 {[%clk 0:02:48]}  exd5 {[%clk 0:03:00]} 4. Nf3 {[%clk 0:02:49]}  Nc6 {[%clk 0:03:01]} 5. Bd3 {[%clk 0:02:49]}  Nb4 {[%clk 0:03:01]} 6. Be2 {[%clk 0:02:47]}  Bf5 {[%clk 0:03:01]} 7. Na3 {[%clk 0:02:46]}  Nc6 {[%clk 0:03:01]} 8. O-O {[%clk 0:02:44]}  Nf6 {[%clk 0:02:59]} 9. c4 {[%clk 0:02:33]}  Bxa3 {[%clk 0:02:58]} 10. bxa3 {[%clk 0:02:32]}  O-O {[%clk 0:02:59]} 11. Bg5 {[%clk 0:02:23]}  h6 {[%clk 0:02:59]} 12. Bh4 {[%clk 0:02:22]}  g5 {[%clk 0:02:53]} 13. Bg3 {[%clk 0:02:15]}  Re8 {[%clk 0:02:49]} 14. Ne5 {[%clk 0:02:09]}  Nxe5 {[%clk 0:02:21]} 15. Bxe5 {[%clk 0:01:45]}  Nd7 {[%clk 0:02:19]} 16. Bg3 {[%clk 0:01:37]}  dxc4 {[%clk 0:02:18]} 17. Bxc4 {[%clk 0:01:29]}  Nb6 {[%clk 0:02:18]} 18. Bb3 {[%clk 0:01:20]}  Be6 {[%clk 0:02:19]} 19. Qh5 {[%clk 0:01:12]}  Bxb3 {[%clk 0:01:51]} 20. axb3 {[%clk 0:01:11]}  Kg7 {[%clk 0:01:51]} 21. f4 {[%clk 0:01:04]}  Qxd4+ {[%clk 0:01:23]} 22. Kh1 {[%clk 0:01:04]}  g4 {[%clk 0:01:20]} 23. Qxg4+ {[%clk 0:00:40]}  Kf8 {[%clk 0:01:14]} 24. Qh5 {[%clk 0:00:35]}  Qg7 {[%clk 0:01:14]} 25. f5 {[%clk 0:00:31]}  Nd5 {[%clk 0:01:13]} 26. Rae1 {[%clk 0:00:18]}  Rxe1 {[%clk 0:01:10]} 27. Rxe1 {[%clk 0:00:18]}  Re8 {[%clk 0:01:10]} 28. Rf1 {[%clk 0:00:09]}  c6 {[%clk 0:01:03]} 29. Qf3 {[%clk 0:00:09]}  Re3 {[%clk 0:01:00]} 30. Qf2 {[%clk 0:00:04]}  Qg4 {[%clk 0:00:57]} 31. f6 {[%clk 0:00:03]}  b6 {[%clk 0:00:54]} 32. Bd6+ {[%clk 0:00:03]}  Kg8 {[%clk 0:00:54]} 33. h3 {[%clk 0:00:04]}  Qe4 {[%clk 0:00:53]} 34. Bh2 {[%clk 0:00:02]}  Kh7 {[%clk 0:00:52]} 35. Rg1 {[%clk 0:00:02]}  Rxh3 {[%clk 0:00:49]} 36. Rf1 {[%clk 0:00:02]}  Re3 {[%clk 0:00:45]} 37. Kg1 {[%clk 0:00:02]}  Re2 {[%clk 0:00:44]} 38. Qg3 {[%clk 0:00:02]}  Qe3+ {[%clk 0:00:45]} 39. Qxe3 {[%clk 0:00:02]}  Nxe3 {[%clk 0:00:46]} 40. Rf3 {[%clk 0:00:02]}  Rxg2+ {[%clk 0:00:41]} 41. Kh1 {[%clk 0:00:02]}  Re2 {[%clk 0:00:42]} 42. Rf4 {[%clk 0:00:02]}  Nd5 {[%clk 0:00:40]} 43. Rc4 {[%clk 0:00:02]}  Re6 {[%clk 0:00:40]} 44. b4 {[%clk 0:00:02]}  Nxf6 {[%clk 0:00:39]} 45. Kg2 {[%clk 0:00:02]}  Nd5 {[%clk 0:00:40]} 46. Kf3 {[%clk 0:00:02]}  Rf6+ {[%clk 0:00:40]} 47. Ke4 {[%clk 0:00:02]}  Kg6 {[%clk 0:00:40]} 48. Be5 {[%clk 0:00:02]}  Re6 {[%clk 0:00:41]} 49. Rc2 {[%clk 0:00:01]}  Nf6+ {[%clk 0:00:39]} 50. Kd4 {[%clk 0:00:02]}  Ng4 {[%clk 0:00:39]} 51. Rg2 {[%clk 0:00:02]}  h5 {[%clk 0:00:39]} 52. Bb8 {[%clk 0:00:03]}  Re7 {[%clk 0:00:38]} 53. Kc4 {[%clk 0:00:03]}  Kf5 {[%clk 0:00:37]} 54. a4 {[%clk 0:00:03]}  Ne3+ {[%clk 0:00:38]} 55. Kb3 {[%clk 0:00:03]}  Nxg2 {[%clk 0:00:39]} 0-1


[Site "https://www.chess.com"]

[Event "Titled Tuesday Blitz June 6 Late 2023"]
[White "Moroni, Luca Jr"]
[Black "Shohat, Yotam"]
[WhiteFideId "865834"]
[BlackFideId "2813955"]
[WhiteElo "2569"]
[BlackElo "2226"]
[Result "1-0"]
[Round "4"]
[TimeControl "180+2"]
[Date "2023.06.07"]
[WhiteClock "0:01:08"]
[BlackClock "0:00:42"]
[Board "36"]

1. d4 {[%clk 0:02:54]}  Nf6 {[%clk 0:02:58]} 2. Bf4 {[%clk 0:02:52]}  e6 {[%clk 0:02:56]} 3. e3 {[%clk 0:02:52]}  d5 {[%clk 0:02:56]} 4. Nf3 {[%clk 0:02:52]}  c5 {[%clk 0:02:56]} 5. Nbd2 {[%clk 0:02:50]}  Bd6 {[%clk 0:02:56]} 6. dxc5 {[%clk 0:02:49]}  Bxc5 {[%clk 0:02:56]} 7. Bd3 {[%clk 0:02:46]}  Nc6 {[%clk 0:02:55]} 8. O-O {[%clk 0:02:45]}  O-O {[%clk 0:02:48]} 9. e4 {[%clk 0:02:40]}  dxe4 {[%clk 0:02:06]} 10. Nxe4 {[%clk 0:02:41]}  Be7 {[%clk 0:02:06]} 11. c3 {[%clk 0:02:37]}  b6 {[%clk 0:02:01]} 12. Qe2 {[%clk 0:02:30]}  Bb7 {[%clk 0:01:57]} 13. Rad1 {[%clk 0:02:28]}  Qc8 {[%clk 0:01:44]} 14. Nxf6+ {[%clk 0:02:20]}  Bxf6 {[%clk 0:01:44]} 15. Ng5 {[%clk 0:02:17]}  g6 {[%clk 0:01:38]} 16. Ne4 {[%clk 0:02:11]}  Bg7 {[%clk 0:01:38]} 17. Nd6 {[%clk 0:02:06]}  Qd7 {[%clk 0:01:37]} 18. Be4 {[%clk 0:01:55]}  Qe7 {[%clk 0:01:29]} 19. Nxb7 {[%clk 0:01:52]}  Qxb7 {[%clk 0:01:30]} 20. Qf3 {[%clk 0:01:49]}  Rac8 {[%clk 0:01:30]} 21. Rd6 {[%clk 0:01:48]}  e5 {[%clk 0:01:13]} 22. Be3 {[%clk 0:01:38]}  f5 {[%clk 0:01:05]} 23. Bxc6 {[%clk 0:01:33]}  Qc7 {[%clk 0:01:06]} 24. Qd5+ {[%clk 0:01:30]}  Kh8 {[%clk 0:01:06]} 25. Rd1 {[%clk 0:01:20]}  Bf6 {[%clk 0:00:43]} 26. Bh6 {[%clk 0:01:17]}  Rfe8 {[%clk 0:00:42]} 27. Bxe8 {[%clk 0:01:08]} 1-0


[Site "https://www.chess.com"]